fUSD/lending_fUSD_20240626
["ID","MTS","AMOUNT","RATE_DAILY","PERIOD"]
[330416318,1719360111510,311.3078,0.00026,120]
[330416332,1719360632315,-422.57359696,0.00019372,2]
[330416333,1719360632329,-567.05419404,0.00019372,2]
[330416334,1719360632339,-723.72,0.0001947,2]
[330416335,1719360632350,-1651.0,0.00020296,2]
[330416336,1719360632361,-1820.0,0.00020296,2]
[330416337,1719360632371,-617.0,0.00020296,2]
[330416338,1719360632382,-442.0,0.00020296,2]
[330416339,1719360632394,-448.0,0.00020296,2]
[330416340,1719360632403,-812.0,0.00020296,2]
[330416341,1719360632413,-166.0,0.00020296,2]
[330416342,1719360632422,-2411.0,0.00020296,2]
[330416343,1719360632431,-1303.0,0.00020296,2]
[330416344,1719360632441,-3199.0,0.00020296,2]
[330416345,1719360632451,-547.0,0.00020296,2]
[330416346,1719360632461,-1983.0,0.00020296,2]
[330416347,1719360632472,-300.0,0.00020901,2]
[330416348,1719360632482,-999.99,0.00020901,2]
[330416349,1719360632492,-150.99,0.00020901,2]
[330416350,1719360632503,-939.24580596,0.00021,2]
[330416351,1719360632529,-310.75419404,0.00021,2]
[330416352,1719360632540,-264.52371367,0.00021295,2]
[330416353,1719360632551,-450.0,0.00021295,2]
[330416354,1719360632577,-9285.47628633,0.00021295,2]
[330416355,1719360632587,-500.0,0.00021328,2]
[330416356,1719360632597,-13592.89,0.00021335,2]
[330416357,1719360632608,-250.0,0.00021343,2]
[330416358,1719360632618,-4379.00319048,0.00021358,2]
[330416359,1719360632658,-7312.48266285,0.00021358,2]
[330416360,1719360632667,-163.38,0.0002136,2]
[330416361,1719360632678,-1235.15,0.00021362,2]
[330416362,1719360632687,-15552.67,0.00021369,2]
[330416363,1719360632697,-250.0,0.00021372,2]
[330416364,1719360632708,-250.0,0.00021373,2]
[330416365,1719360632719,-200.0,0.00021389,2]
[330416366,1719360632729,-2751.0,0.00021389,2]
[330416367,1719360632739,-3989.06,0.00021393,2]
[330416368,1719360632749,-263.37140106,0.00021393,2]
[330416369,1719360632758,-309.1,0.00021396,2]
[330416370,1719360632768,-166.55,0.00021406,2]
[330416372,1719360632779,-1000.0,0.00021621,2]
[330416373,1719360632788,-703.63,0.00021644,2]
[330416374,1719360632797,-723.72,0.00021734,2]
[330416375,1719360632807,-300.0,0.00021772,2]
[330416376,1719360632816,-150.0,0.00021799,2]
[330416377,1719360632826,-300.0,0.000218,2]
[330416379,1719360632835,-761.95,0.00021918,2]
[330416380,1719360632845,-659.90412386,0.00022011,2]
[330416381,1719360632854,-150.9794938,0.00022017,2]
[330416382,1719360632864,-608.38,0.00022027,2]
[330416383,1719360632873,-4407.13,0.00022027,2]
[330416384,1719360632883,-368.1856148,0.00022054,2]
[330416385,1719360632892,-2459.7879314,0.00022097,2]
[330416386,1719360632903,-152.93470143,0.00022126,2]
[330416387,1719360632913,-315.64448345,0.00022169,2]
[330416388,1719360632923,-150.9794938,0.00022176,2]
[330416389,1719360632932,-170.87896129,0.00022176,2]
[330416390,1719360632942,-659.90412386,0.00022199,2]
[330416391,1719360632952,-964.01972303,0.00022208,2]
[330416392,1719360632962,-2459.7879314,0.00022239,2]
[330416393,1719360632972,-464.56256611,0.00022249,2]
[330416394,1719360632982,-154.11083982,0.00022271,2]
[330416395,1719360632992,-177.81912502,0.00022282,2]
[330416396,1719360633002,-659.90412386,0.00022318,2]
[330416397,1719360633012,-208.1454063,0.00022418,2]
[330416398,1719360633021,-2459.7879314,0.00022419,2]
[330416399,1719360633031,-3023.35359891,0.00022438,2]
[330416400,1719360633041,-2459.7879314,0.00022439,2]
[330416401,1719360633051,-167.42195523,0.00022464,2]
[330416402,1719360633061,-964.01972303,0.00022473,2]
[330416403,1719360633071,-464.56256611,0.00022512,2]
[330416404,1719360633080,-154.11083982,0.00022529,2]
[330416405,1719360633090,-368.1856148,0.00022541,2]
[330416406,1719360633099,-150.9794938,0.00022592,2]
[330416407,1719360633109,-155.177234,0.00022597,2]
[330416408,1719360633119,-423.67,0.00022621,2]
[330416409,1719360633129,-823.47,0.00022621,2]
[330416410,1719360633138,-300.0,0.00022621,2]
[330416411,1719360633150,-328.65,0.00022621,2]
[330416412,1719360633160,-423.79,0.00022621,2]
[330416413,1719360633170,-150.0,0.00022621,2]
[330416414,1719360633179,-633.56,0.00022621,2]
[330416415,1719360633189,-329.2,0.00022621,2]
[330416416,1719360633199,-156.36496914,0.00022627,2]
[330416417,1719360633212,-208.1454063,0.00022637,2]
[330416418,1719360633221,-3657.85892677,0.00022654,2]
[330416419,1719360633231,-166.66666666,0.00022666,2]
[330416420,1719360633241,-964.01972303,0.00022687,2]
[330416421,1719360633251,-360.12392543,0.00022749,2]
[330416422,1719360634260,-8.06168937,0.00022749,2]
[330416423,1719360634270,-161.57778649,0.00022761,2]
[330416424,1719360634280,-155.69335686,0.00022789,2]
[330416425,1719360634292,-166.66666667,0.000228,2]
[330416426,1719360634302,-500.0,0.00022806,2]
[330416427,1719360634312,-990.53023155,0.00022814,2]
[330416428,1719360634322,-166.66666666,0.00022818,2]
[330416429,1719360634332,-154.11083982,0.00022821,2]
[330416430,1719360634341,-166.66666666,0.00022839,2]
[330416431,1719360634350,-152.20122712,0.00022845,2]
[330416432,1719360634359,-875.7868288,0.00022879,2]
[330416433,1719360634371,-736.70073511,0.00022879,2]
[330416434,1719360634409,-403.93572625,0.00022879,2]
[330416435,1719360634419,-172.96558044,0.00022889,2]
[330416436,1719360634428,-214.34691716,0.00022889,2]
[330416453,1719360638257,-2117.11046069,0.00022889,2]
[330416454,1719360638266,-2331.4573778,0.00022889,2]
[330416456,1719360638276,-172.96558043,0.0002289,2]
[330416458,1719360638286,-4576.631,0.0002289,2]
[330416460,1719360638296,-172.9312926,0.0002289,2]
[330416462,1719360638305,-3365.82848848,0.0002289,2]
[330416464,1719360638317,-8128.2137089,0.0002289,2]
[330416466,1719360638326,-630.5367656,0.0002289,2]
[330416468,1719360638335,-172.96558043,0.0002289,2]
[330416470,1719360638344,-752.38776102,0.0002289,2]
[330416472,1719360638353,-490.0,0.000229,5]
[330416474,1719360638363,-526.41386275,0.00022915,2]
[330416475,1719360638372,-150.9794938,0.00022916,2]
[330416476,1719360638382,-154.11852598,0.00022939,2]
[330416477,1719360638391,-2459.7879314,0.00022949,2]
[330416478,1719360638403,-170.46,0.0002297,2]
[330416479,1719360638413,-9038.06707726,0.0002298,3]
[330416480,1719360638432,-951.46847975,0.0002298,3]
[330416481,1719360638446,-13237.32090486,0.0002298,3]
[330416482,1719360638457,-43486.65307219,0.0002298,3]
[330416483,1719360638474,-24874.27443899,0.0002298,3]
[330416484,1719360638511,-5005.16446759,0.0002298,3]
[330416485,1719360638523,-484.29211093,0.0002298,3]
[330416655,1719360640288,-2331.4573778,0.00022889,2]
[330416657,1719360640299,-19482.10801678,0.0002298,3]
[330416659,1719360640311,-476.1900307,0.0002298,3]
[330416662,1719360640322,-401.45467657,0.0002298,3]
[330416664,1719360640334,-500.0008285,0.0002298,3]
[330416667,1719360640355,-682.15741014,0.0002298,3]
[330416951,1719360643261,-645.0,0.0001934,2]
[330416954,1719360643272,-511.05732044,0.0001934,2]
[330416959,1719360643313,-371.86622029,0.0001934,2]
[330416966,1719360643375,-8472.07645927,0.0001934,2]
[330416969,1719360643386,-45120.84475101,0.0002298,3]
[330416981,1719360643505,-771.71644286,0.0002298,3]
[330416983,1719360643518,-752.72,0.0002298,3]
[330416986,1719360643531,-5606.71194773,0.0002298,3]
[330416988,1719360643542,-19588.75170967,0.0002298,3]
[330416990,1719360643554,-3529.30187106,0.0002298,3]
[330416992,1719360643565,-635.0,0.0002298,3]
[330416996,1719360643687,-55320.80033241,0.0002298,3]
[330417066,1719360646363,-1085.70418479,0.00022889,2]
[330417067,1719360646375,-645.0,0.00022889,2]
[330417068,1719360646392,-600.75319301,0.00022889,2]
[330417069,1719360646401,-11180.6554783,0.0002298,3]
[330417070,1719360646436,-316.01403212,0.0002298,3]
[330417071,1719360646447,-2176.89212476,0.0002298,3]
[330417072,1719360646727,-137051.84523582,0.0002298,3]
[330417073,1719360646737,-150.01,0.00022989,2]
[330417074,1719360646746,-5175.09181706,0.00022989,2]
[330417075,1719360646755,-1000.0,0.00022989,2]
[330417076,1719360646764,-173.74655438,0.0002299,2]
[330417077,1719360646773,-166392.30304985,0.0002299,7]
[330417078,1719360646785,-349.999995,0.0002299,7]
[330417079,1719360646804,-962.65997474,0.0002299,7]
[330417080,1719360646815,-735.73500075,0.0002299,7]
[330417092,1719360892788,288.5422756,0.00030859,120]
[330417093,1719360967333,175.17,0.00025015,120]
[330417094,1719361066738,182.0,0.00030874,30]
[330417095,1719361120930,5000.0,0.00030874,30]
[330417096,1719361141403,5000.0,0.00030874,30]
[330417097,1719361152017,5000.0,0.00030874,30]
[330417098,1719361162391,5000.0,0.00030874,30]
[330417099,1719361169008,5000.0,0.00030874,30]
[330417100,1719361175054,5000.0,0.00030874,30]
[330417101,1719361179885,5000.0,0.00030874,30]
[330417102,1719361188126,5000.0,0.00030874,30]
[330417103,1719361195135,5000.0,0.00030874,30]
[330417104,1719361202206,5000.0,0.00030874,30]
[330417105,1719361327382,5000.0,0.00030874,30]
[330417106,1719361332608,5000.0,0.00030874,30]
[330417107,1719361337681,5000.0,0.00030874,30]
[330417108,1719361345175,4000.0,0.00030874,30]
[330417110,1719361632136,500.0,8.5e-07,30]
[330417112,1719361734528,244.14427434,5e-05,2]
[330417113,1719361786528,244.14427434,5e-05,2]
[330417114,1719361791788,232.9988994,5e-05,2]
[330417115,1719361796603,264.43360224,5e-05,2]
[330417116,1719361798544,382.21003398,5e-05,2]
[330417117,1719361812008,150.0,5e-05,2]
[330417118,1719361812281,150.0,5e-05,2]
[330417119,1719361812433,150.0,5e-05,2]
[330417120,1719361812561,150.0,5e-05,2]
[330417121,1719361812736,150.0,5e-05,2]
[330417122,1719361812946,150.0,5e-05,2]
[330417123,1719361813225,109.6289157,5e-05,2]
[330417124,1719361813253,40.3710843,5e-05,2]
[330417125,1719361813400,150.0,5e-05,2]
[330417126,1719361813617,150.0,5e-05,2]
[330417127,1719361813828,150.0,5e-05,2]
[330417128,1719361813992,150.0,5e-05,2]
[330417129,1719361814186,171.07751545,5e-05,2]
[330417139,1719361831795,-710.07,0.00019043,2]
[330417140,1719361831804,-300.0,0.00019139,2]
[330417141,1719361831814,-150.0,0.00019139,2]
[330417142,1719361831823,-300.0,0.00019139,2]
[330417143,1719361831832,-684.38724868,0.0001914,2]
[330417144,1719361831844,-1079.82897878,0.0001914,2]
[330417145,1719361831855,-746.56164777,0.0001914,2]
[330417146,1719361831866,-830.08689098,0.0001914,2]
[330417147,1719361832348,-478.59396333,0.0001914,2]
[330417148,1719361832381,-2063.07857046,0.0001914,2]
[330417149,1719361832406,-2180.76550031,0.0001934,2]
[330417150,1719361832439,-1525.958845,0.0001934,2]
[330417151,1719361832452,-620.19845021,0.0001934,2]
[330417152,1719361832463,-1256.0721124,0.0001934,2]
[330417153,1719361832474,-2365.70006824,0.0001934,2]
[330417154,1719361832484,-2883.27,0.00020873,2]
[330417155,1719361832494,-150.99,0.00020873,2]
[330417156,1719361832503,-401.50357119,0.00020883,2]
[330417157,1719361832514,-1514.79151375,0.00020883,2]
[330417158,1719361832525,-1107.67262418,0.00020883,2]
[330417159,1719361832536,-479.84771151,0.00020883,2]
[330417160,1719361832566,-4869.87206032,0.00020883,2]
[330417161,1719361832580,-8078.58396264,0.00020883,2]
[330417162,1719361832591,-500.0,0.00020883,2]
[330417163,1719361832602,-3488.32272,0.00020883,2]
[330417164,1719361832613,-693.84746534,0.00020883,2]
[330417165,1719361832626,-5075.22837107,0.00020883,2]
[330417166,1719361832636,-2972.31584646,0.00020883,2]
[330417167,1719361832793,-280.83854349,0.00020883,2]
[330417168,1719361832804,-535.511,0.00020883,2]
[330417169,1719361836533,244.14427434,6.061e-05,2]
[330417171,1719361837448,-1529.38635763,0.00020883,2]
[330417172,1719361837472,-4769.03825242,0.00020883,2]
[330417173,1719361837482,-250.0,0.00020918,2]
[330417174,1719361837491,-935.85,0.00020935,2]
[330417175,1719361837501,-250.0,0.00020946,2]
[330417176,1719361837510,-166.55,0.00020946,2]
[330417177,1719361837521,-10000.0,0.00020946,2]
[330417178,1719361837530,-2751.0,0.0002095,2]
[330417179,1719361837539,-5280.63,0.00020966,2]
[330417180,1719361837549,-200.0,0.00020979,2]
[330417181,1719361837559,-250.0,0.00021028,2]
[330417182,1719361837569,-188.41,0.00021034,2]
[330417183,1719361837584,-223.0,0.00021053,2]
[330417184,1719361837593,-210.0,0.00021053,2]
[330417185,1719361837603,-17713.52,0.00021143,2]
[330417186,1719361837612,-243.22,0.00021176,2]
[330417187,1719361837624,-151.43,0.00021302,2]
[330417188,1719361837638,-710.07,0.00021307,2]
[330417189,1719361837647,-151.43,0.00021381,2]
[330417190,1719361837658,-1000.0,0.00021426,2]
[330417191,1719361837668,-175.17,0.00021442,2]
[330417192,1719361837677,-151.43,0.0002146,2]
[330417193,1719361837687,-151.43,0.00021539,2]
[330417194,1719361837696,-151.43,0.00021619,2]
[330417195,1719361837706,-165.19,0.00021644,2]
[330417196,1719361837717,-16208.0,0.00021678,2]
[330417197,1719361837726,-151.43,0.00021698,2]
[330417198,1719361837736,-151.43,0.00021777,2]
[330417199,1719361837745,-2100.0,0.00021836,2]
[330417200,1719361837757,-151.43,0.00021857,2]
[330417201,1719361837766,-300.0,0.000219,7]
[330417202,1719361837776,-165.26,0.00021929,2]
[330417204,1719361837786,-151.43,0.00021936,2]
[330417206,1719361837796,-600.0,0.00022,8]
[330417208,1719361837805,-151.43,0.00022015,2]
[330417210,1719361837814,-151.43,0.00022094,2]
[330417212,1719361837824,-900.0,0.000221,8]
[330417214,1719361837833,-151.43,0.00022174,2]
[330417216,1719361837843,-1300.0,0.000222,8]
[330417218,1719361837853,-243.22,0.00022235,2]
[330417221,1719361837863,-151.43,0.00022253,2]
[330417223,1719361837875,-1600.0,0.000223,8]
[330417225,1719361837884,-151.43,0.00022332,2]
[330417227,1719361837894,-4860.7362,0.000224,2]
[330417229,1719361837904,-300.0,0.000224,8]
[330417230,1719361837914,-151.43,0.00022412,2]
[330417233,1719361837924,-5097.43235996,0.00022464,2]
[330417234,1719361837934,-364.17181321,0.00022471,2]
[330417237,1719361837944,-300.0,0.000225,8]
[330417239,1719361837954,-5097.43235993,0.00022511,2]
[330417264,1719361838185,-5097.43235993,0.00022559,2]
[330417270,1719361838252,-4556.7187429,0.00022564,2]
[330417272,1719361838263,-300.0,0.000226,8]
[330417274,1719361838273,-4556.71874284,0.000226,2]
[330417276,1719361838283,-5097.43235993,0.00022606,2]
[330417277,1719361838293,-4556.71874284,0.00022636,2]
[330417278,1719361838302,-5097.43235993,0.00022653,2]
[330417279,1719361838312,-2500.0,0.0002266,2]
[330417280,1719361838322,-4556.71874284,0.00022673,2]
[330417281,1719361838331,-2889.7741,0.00022683,2]
[330417282,1719361838341,-1866.47246168,0.000227,2]
[330417283,1719361838350,-300.0,0.000227,8]
[330417284,1719361838360,-5097.43235993,0.00022701,2]
[330417285,1719361838370,-4556.71874284,0.00022709,2]
[330417286,1719361838380,-2509.5105,0.00022727,2]
[330417287,1719361838390,-1866.47246167,0.00022727,2]
[330417288,1719361838399,-4556.71874284,0.00022745,2]
[330417289,1719361838409,-5097.43235993,0.00022748,2]
[330417290,1719361838418,-1866.47246167,0.00022754,2]
[330417291,1719361838428,-264.82765376,0.00022773,2]
[330417292,1719361838438,-49976.4774,0.0002278,2]
[330417293,1719361838447,-328.625,0.0002278,2]
[330417294,1719361838457,-4556.71874284,0.00022781,2]
[330417296,1719361838467,-1866.47246167,0.00022781,2]
[330417298,1719361838477,-321.0773,0.0002279,2]
[330417300,1719361838488,-882.3549,0.0002279,2]
[330417302,1719361838498,-800.0,0.00022795,2]
[330417304,1719361838509,-5097.43235993,0.00022795,2]
[330417306,1719361838520,-1462.0,0.000228,2]
[330417308,1719361838530,-700.0,0.000228,8]
[330417310,1719361838541,-264.82765372,0.00022802,2]
[330417312,1719361838551,-200.0,0.00022805,2]
[330417314,1719361838562,-1000.0,0.00022806,2]
[330417316,1719361838573,-500.0,0.00022806,2]
[330417318,1719361838587,-200.0,0.00022806,2]
[330417320,1719361838598,-1866.47246167,0.00022809,2]
[330417322,1719361838608,-4556.71874284,0.00022818,2]
[330417324,1719361838619,-21671.34354435,0.0002282,2]
[330417326,1719361838630,-11137.12455239,0.0002282,2]
[330417329,1719361838645,-579.2090791,0.0002282,2]
[330417334,1719361838688,-503.91189892,0.0002282,2]
[330417340,1719361838743,-1839.93992941,0.0002282,2]
[330417343,1719361838758,-900.45563121,0.0002282,2]
[330417491,1719361840356,-1007.73254721,0.0002282,2]
[330417493,1719361840369,-5702.96990611,0.0002282,2]
[330417495,1719361840382,-264.82765372,0.00022832,2]
[330417497,1719361840392,-1866.47246167,0.00022836,2]
[330417498,1719361840403,-5097.43235993,0.00022843,2]
[330417499,1719361840413,-4556.71874284,0.00022854,2]
[330417500,1719361840423,-264.82765372,0.00022861,2]
[330417501,1719361840433,-1866.47246167,0.00022863,2]
[330417502,1719361840444,-195.5711968,0.0002287,2]
[330417503,1719361840454,-13390.50759354,0.0002287,3]
[330417505,1719361840467,-2091.682593,0.0002287,3]
[330417508,1719361840507,-857.69234347,0.0002287,3]
[330417509,1719361840557,-61431.96523245,0.0002287,3]
[330417510,1719361840570,-184.35152324,0.0002287,3]
[330417511,1719361840585,-166.75,0.0002287,2]
[330417512,1719361840596,-11136.599898,0.00022874,3]
[330417513,1719361840606,-800.0,0.00022877,2]
[330417514,1719361840617,-800.0,0.00022877,2]
[330417515,1719361840631,-11136.599898,0.00022878,3]
[330417516,1719361840774,-100000.0,0.0002288,2]
[330417517,1719361840785,-242607.5399,0.0002288,2]
[330417518,1719361840796,-22273.1997959,0.0002288,3]
[330417519,1719361840807,-151.0,0.0002288,7]
[330417520,1719361840817,-151.0,0.0002288,7]
[330417521,1719361840827,-151.0,0.0002288,7]
[330417522,1719361840837,-151.0,0.0002288,7]
[330417523,1719361840847,-151.0,0.0002288,7]
[330417524,1719361840858,-3000.0,0.0002288,2]
[330417525,1719361840868,-151.683932,0.0002288,7]
[330417526,1719361840879,-151.0,0.0002288,7]
[330417527,1719361840890,-151.0,0.0002288,7]
[330417528,1719361840900,-151.0,0.0002288,7]
[330417529,1719361840910,-153.703346,0.0002288,7]
[330417530,1719361840920,-151.0,0.0002288,7]
[330417531,1719361840930,-151.0,0.0002288,7]
[330417532,1719361840941,-151.0,0.0002288,7]
[330417533,1719361840951,-151.0,0.0002288,7]
[330417534,1719361840961,-152.808448,0.0002288,7]
[330417535,1719361840972,-1268.720953,0.0002288,7]
[330417536,1719361840982,-151.0,0.0002288,7]
[330417537,1719361840993,-1268.720953,0.0002288,7]
[330417538,1719361841004,-151.0,0.0002288,7]
[330417539,1719361841014,-151.0,0.0002288,7]
[330417540,1719361841024,-157.922047,0.0002288,7]
[330417541,1719361841034,-151.0,0.0002288,7]
[330417542,1719361841044,-151.0,0.0002288,7]
[330417543,1719361841056,-151.0,0.0002288,7]
[330417544,1719361841067,-11136.599898,0.0002288,3]
[330417545,1719361841078,-172.93129255,0.00022883,2]
[330417546,1719361841088,-1314.71725166,0.00022883,2]
[330417547,1719361841099,-157.87105774,0.00022884,2]
[330417548,1719361841110,-2900.19236113,0.00022884,2]
[330417549,1719361841120,-450.7799,0.00022884,2]
[330417550,1719361841132,-2900.19236102,0.00022885,2]
[330417551,1719361841143,-2900.19236102,0.00022885,2]
[330417552,1719361841153,-2900.19236102,0.00022886,2]
[330417553,1719361841163,-2900.19236102,0.00022886,2]
[330417554,1719361841173,-2900.19236102,0.00022887,2]
[330417555,1719361841184,-2900.19236102,0.00022887,2]
[330417556,1719361841194,-2900.19236102,0.00022888,2]
[330417557,1719361841204,-2900.19236102,0.00022888,2]
[330417558,1719361841214,-2900.19236102,0.00022889,2]
[330417559,1719361841224,-2900.19236102,0.00022889,2]
[330417560,1719361841234,-393.9356,0.0002289,2]
[330417561,1719361841244,-34095.05422362,0.0002289,2]
[330417562,1719361841257,-2077.6141041,0.0002289,2]
[330417563,1719361841268,-1049.46119798,0.0002289,2]
[330417564,1719361841280,-1951.95005282,0.0002289,2]
[330417565,1719361841298,-242.35892148,0.0002289,2]
[330417566,1719361841308,-1000.0,0.0002289,2]
[330417567,1719361841319,-2900.19236102,0.0002289,2]
[330417568,1719361841330,-151.727477,0.0002289,7]
[330417569,1719361841340,-271.857307,0.0002289,7]
[330417570,1719361841350,-151.0,0.0002289,7]
[330417571,1719361841361,-151.0,0.0002289,7]
[330417572,1719361841372,-4556.71874284,0.0002289,2]
[330417573,1719361841383,-5097.43235993,0.0002289,2]
[330417574,1719361841393,-264.82765372,0.0002289,2]
[330417575,1719361841403,-391.40791924,0.0002289,2]
[330417576,1719361841414,-1866.47246167,0.0002289,2]
[330417577,1719361841424,-393.52094951,0.0002289,2]
[330417578,1719361841433,-1969.985468,0.0002289,2]
[330417579,1719361841553,-450.83641036,0.0002289,2]
[330417580,1719361841565,-741.079999,0.0002289,2]
[330417581,1719361841578,-1642.8995,0.0002289,2]
[330417582,1719361841592,-302.85004585,0.0002289,2]
[330417583,1719361841626,-4892.34857679,0.0002289,2]
[330417584,1719361841636,-1000.0,0.0002289,2]
[330417585,1719361841645,-1263.41272786,0.00022899,2]
[330417586,1719361841655,-490.0,0.000229,5]
[330417587,1719361841665,-533.14275939,0.000229,2]
[330417588,1719361841676,-150.0,0.000229,2]
[330417589,1719361841685,-1169.048298,0.00022954,2]
[330417590,1719361841695,-6337.61738796,0.00022955,3]
[330417591,1719361841707,-4798.98251004,0.00022955,3]
[330417592,1719361841716,-151.0,0.00022955,7]
[330417593,1719361841726,-151.0,0.00022955,7]
[330417594,1719361841735,-1268.720953,0.00022955,7]
[330417595,1719361841745,-1268.720953,0.00022955,7]
[330417596,1719361841754,-151.0,0.00022955,7]
[330417597,1719361841763,-151.0,0.00022955,7]
[330417598,1719361841774,-2828.80779475,0.00022956,2]
[330417599,1719361841784,-3107.31885347,0.00022957,2]
[330417600,1719361841794,-720.52768086,0.00022958,2]
[330417601,1719361841803,-720.52768086,0.00022958,2]
[330417602,1719361841814,-800.0,0.00022959,2]
[330417603,1719361841823,-438.1115069,0.0002296,2]
[330417604,1719361841832,-916.79346426,0.0002296,2]
[330417605,1719361841842,-11136.599898,0.0002296,3]
[330417606,1719361841851,-11136.599898,0.00022961,3]
[330417607,1719361841860,-155.0,0.00022962,2]
[330417608,1719361841870,-955.9732708,0.00022963,2]
[330417609,1719361841880,-155.09956307,0.00022963,2]
[330417610,1719361841889,-158.29157174,0.00022963,2]
[330417611,1719361841899,-151.0,0.00022963,7]
[330417612,1719361841909,-155.0,0.00022963,2]
[330417613,1719361841918,-1628.33075206,0.00022963,2]
[330417614,1719361841927,-1628.33075206,0.00022963,2]
[330417615,1719361841936,-1288.95556116,0.00022963,2]
[330417616,1719361841945,-295.73291685,0.00022963,2]
[330417617,1719361841954,-2491.58422844,0.00022964,2]
[330417618,1719361841963,-483.00146508,0.00022964,2]
[330417619,1719361841972,-4453.94405105,0.00022964,2]
[330417620,1719361841982,-491.56025274,0.00022964,2]
[330417621,1719361841991,-346.03148912,0.00022964,2]
[330417622,1719361842001,-242.15293886,0.00022964,2]
[330417623,1719361842011,-1134.08647708,0.00022964,2]
[330417624,1719361842021,-2199.11898559,0.00022964,2]
[330417625,1719361842031,-217.90047204,0.00022964,2]
[330417626,1719361842042,-461.29191155,0.00022965,2]
[330417627,1719361842071,-155.0,0.00022965,2]
[330417628,1719361842081,-155.0,0.00022965,2]
[330417629,1719361842090,-366.20311967,0.00022966,2]
[330417630,1719361842099,-660.4164294,0.00022966,2]
[330417631,1719361842109,-158.87877684,0.00022966,2]
[330417632,1719361842118,-155.0,0.00022966,2]
[330417633,1719361842127,-1069.67493178,0.00022966,2]
[330417634,1719361842136,-264.3264858,0.00022966,2]
[330417635,1719361842145,-159.01450859,0.00022966,2]
[330417636,1719361842155,-202.49463357,0.00022967,2]
[330417637,1719361842163,-163.60172734,0.00022967,2]
[330417638,1719361842172,-378.6472136,0.00022967,2]
[330417639,1719361842187,-155.0,0.00022967,2]
[330417640,1719361842196,-300.83364687,0.00022967,2]
[330417641,1719361842206,-10610.20951163,0.00022967,2]
[330417642,1719361842215,-155.0,0.00022967,2]
[330417643,1719361842224,-529.72889138,0.00022967,2]
[330417644,1719361842233,-155.0,0.00022967,2]
[330417645,1719361842243,-155.0,0.00022967,2]
[330417646,1719361842252,-155.0,0.00022967,2]
[330417647,1719361842261,-1000.0,0.00022968,2]
[330417648,1719361842271,-155.0,0.00022968,2]
[330417649,1719361842280,-269.34473484,0.00022968,2]
[330417650,1719361842289,-364.844001,0.00022968,2]
[330417651,1719361842299,-155.33834544,0.00022968,2]
[330417652,1719361842309,-244.5243077,0.00022968,2]
[330417653,1719361842318,-283.50525412,0.00022968,2]
[330417654,1719361842328,-151.0,0.0002297,7]
[330417656,1719361842338,-164.821821,0.0002297,7]
[330417657,1719361842349,-151.0,0.0002297,7]
[330417658,1719361842359,-151.0,0.0002297,7]
[330417660,1719361842368,-151.0,0.0002297,7]
[330417661,1719361842378,-151.0,0.0002297,7]
[330417663,1719361842387,-151.0,0.0002297,7]
[330417664,1719361842397,-151.0,0.0002297,7]
[330417666,1719361842407,-152.517006,0.0002297,7]
[330417668,1719361842416,-151.0,0.0002297,7]
[330417669,1719361842426,-151.0,0.0002297,7]
[330417671,1719361842435,-151.0,0.0002297,7]
[330417672,1719361842444,-292.626388,0.0002297,7]
[330417674,1719361842454,-944.0,0.00022971,2]
[330417675,1719361842463,-568.384982,0.00022971,7]
[330417676,1719361842472,-479.145162,0.00022971,7]
[330417677,1719361842482,-479.145162,0.00022971,7]
[330417678,1719361842491,-151.0,0.00022973,7]
[330417679,1719361842502,-151.0,0.00022973,7]
[330417680,1719361842511,-1268.720953,0.00022973,7]
[330417681,1719361842521,-1268.720953,0.00022973,7]
[330417682,1719361842531,-151.0,0.00022973,7]
[330417683,1719361842542,-77956.1992857,0.00022973,3]